Cogmind - Beta 14 @@@ ROGUE MODE // 2025.03.28 @ 17:22:19 Player: Seven ate you Result: Self-destructed Performance ------------- Evolutions (3) 1500 Regions Visited (4) 800 Robots Destroyed (36) 180 Value Destroyed (738) 738 Prototype IDs (0) 0 Alien Tech Used (0) 0 Bonus (0) 0 TOTAL SCORE: 3218 Bonus ------- None Cogmind --------- Core Integrity 619/700 Matter 300/300 Energy 160/160 System Corruption 0% Temperature Cool (0) Movement Flying (200) Ox2 Location -7/Factory Parts ------- > --- POWER (2) -------- Light Nuclear Core > --- PROPULSION (2) --- Flight Unit > --- UTILITY (7) ------ Machine Analyzer Visual Processing Unit Signal Interpreter Seismic Detector Advanced Targeting Computer ECM Suite > --- WEAPON (2) ------- Katana > --- INVENTORY (5) ---- VTOL Module Improved Terrain Scanner System Shield System Restoration Module Peak State ------------ > --- POWER ------------ Light Ion Engine > --- PROPULSION ------- Flight Unit Flight Unit > --- UTILITY ---------- Weight Redist. System Machine Analyzer Visual Processing Unit Signal Interpreter Seismic Detector Advanced Targeting Computer ECM Suite > --- WEAPON ----------- High-powered Shotgun Katana > --- INVENTORY -------- Improved Terrain Scanner System Shield High-powered Shotgun High-powered Shotgun [Rating: 23] Favorites ----------- Power Ion Engine Engine Ion Engine Power Core Light Nuclear Core Propulsion Light Treads Treads Light Treads Flight Unit Flight Unit Utility Large Storage Unit Device Seismic Detector Storage Large Storage Unit Processor Improved Targeting Computer Weapon Assault Rifle Energy Gun EM Shotgun Ballistic Gun Assault Rifle Ballistic Cannon Light Cannon Slashing Weapon Katana Build | -11 -10 -9 -8 -7 ------- Run | Yrd Mat Mat Mat Fac Slots Evolved 6 | . . 2 2 2 Power 1 | . . . . 1 Propulsion . | . . . . . Utility 5 | . . 2 2 1 Weapon . | . . . . . Parts Attached 42 | 6 18 2 7 9 Power 6 | 1 1 . . 4 Engine 5 | 1 1 . . 3 Core 1 | . . . . 1 Reactor . | . . . . . Propulsion 6 | 2 2 . . 2 Treads 2 | 2 . . . . Leg . | . . . . . Wheel . | . . . . . Hover . | . . . . . Flight 4 | . 2 . . 2 Utility 18 | 1 9 2 4 2 Device 7 | . 3 1 3 . Storage 4 | 1 2 . . 1 Processor 7 | . 4 1 1 1 Hackware . | . . . . . Protection . | . . . . . Artifact . | . . . . . Weapon 12 | 2 6 . 3 1 Energy Gun 4 | . 3 . 1 . Energy Cannon . | . . . . . Ballistic Gun 5 | 2 1 . 2 . Ballistic Cannon 2 | . 2 . . . Launcher . | . . . . . Special Weapon . | . . . . . Impact Weapon . | . . . . . Slashing Weapon 1 | . . . . 1 Piercing Weapon . | . . . . . Special Melee Weapon . | . . . . . Unidentified Prototypes . | . . . . . Parts Lost 8 | . 2 1 . 5 Power 1 | . . . . 1 Propulsion 5 | . 2 . . 3 Utility 1 | . . . . 1 Weapon 1 | . . 1 . . Highest Loss Streak 2 | . 2 1 . 2 To Critical Strikes . | . . . . . Average Slot Usage (%) 92 | . 95 78 86 82 Engine 12 | . 14 11 9 4 Treads 16 | . 22 . . . Flight 7 | . 4 22 18 14 Device 6 | . 1 14 23 23 Storage 9 | . 12 . . . Processor 15 | . 12 21 24 25 Energy Gun 3 | . 3 10 6 . Ballistic Gun 14 | . 17 . 6 5 Ballistic Cannon 4 | . 5 . . . Peak Build Rating 23 | 6 11 10 21 23 Average Rating 10 | 4 8 9 15 20 On Entrance 7 | . 6 7 7 19 Naked Turns . | . . . . . Heaviest Build 31 | 13 31 8 12 14 Greatest Support 40 | 40 40 8 14 14 Greatest Overweight (x) 10 | 2 10 . . 1 Average Overweight (x) . | . . . . . Largest Inventory Capacity 15 | 8 15 5 5 8 Average Capacity 11 | 6 13 5 5 5 Most Carried 15 | 5 15 5 5 5 Average Carried 9 | 3 11 3 2 4 Final Capacity 8 | 8 5 5 5 5 Final Carried 5 | 4 5 4 3 4 Class Distribution -------------------- 96% | Mutant 3% | Scavenger-Mutant Dominant Class ---------------- Mutant | -10/Materials Mutant | -9/Materials Mutant | -8/Materials Mutant | -7/Factory Resources | -11 -10 -9 -8 -7 ----------- Run | Yrd Mat Mat Mat Fac Matter Collected 979 | 182 638 19 . 140 Remotely . | . . . . . Salvage Created 1005 | . 661 19 . 325 Parts 71 | . 43 2 . 26 Haulers Intercepted . | . . . . . Recyclers Shooed 1 | . 1 . . . Parts Field Recycled . | . . . . . Retrieved Matter . | . . . . . Parts Self-Destructed . | . . . . . Prevented . | . . . . . Kills | -11 -10 -9 -8 -7 ------- Run | Yrd Mat Mat Mat Fac Combat Hostiles Destroyed 24 | . 20 . . 4 Melee 4 | . . . . 4 Guns 11 | . 11 . . . Cannons 9 | . 9 . . . Classes Destroyed 7 | . 4 1 . 2 Worker 4 | . . . . 4 Recycler 2 | . 1 . . 1 Mechanic 1 | . . . . 1 Operator 2 | . . 1 . 1 Watcher 3 | . 3 . . . Swarmer 12 | . 8 . . 4 Grunt 12 | . 12 . . . Best Kill Streak 5 | . 3 1 . 5 Combat Bots Only 3 | . 3 . . 2 Max Kills in Single Turn 2 | . 2 1 . 1 Gunslinging 1 | . 1 . . . Exploded . | . . . . . Melee 1 | . . . . 1 Uniques/NPCs Destroyed . | . . . . . Combat | -11 -10 -9 -8 -7 -------- Run | Yrd Mat Mat Mat Fac Hostile Shots Fired 215 | . 107 16 5 87 Missed 96 | . 27 10 2 57 Damage Taken 1218 | . 781 79 24 334 Core 207 | . 113 13 . 81 Absorbed by Shields . | . . . . . Regen/Repaired (Parts) 15 | . . 15 . . Core Remaining (%) 87 | 100 54 96 100 . Volleys Fired 70 | . 68 2 . . Largest 2 | . 2 1 . . Hottest 70 | . 70 45 . . Shots Fired 136 | . 134 2 . . Gun 82 | . 80 2 . . Cannon 54 | . 54 . . . Launcher . | . . . . . Special . | . . . . . Kinetic 132 | . 132 . . . Thermal . | . . . . . Explosive . | . . . . . Electromagnetic 4 | . 2 2 . . Robot Hit Streak 9 | . 9 2 . . Robot Miss Streak 4 | . 4 1 . . Penetration Max . | . . . . . Secondary Targets 1 | . 1 . . . Max Gunslinging Chain 1 | . 1 . . . Shots Hit Robots 91 | . 75 2 . 14 Core Hits 37 | . 28 2 . 7 Critical Kills . | . . . . . Critical Parts Destroyed . | . . . . . Critical Strikes 3 | . 3 . . . Blast 3 | . 3 . . . Melee Attacks 21 | . . . . 21 Impact . | . . . . . Slashing 21 | . . . . 21 Piercing . | . . . . . Sneak Attacks 6 | . . . . 6 Combat Hostiles . | . . . . . Follow-up Attacks . | . . . . . Damage Inflicted 1724 | . 1025 26 . 673 Guns 486 | . 460 26 . . Cannons 565 | . 565 . . . Explosions . | . . . . . Melee 673 | . . . . 673 Ramming . | . . . . . Kinetic 997 | . 997 . . . Thermal . | . . . . . Explosive . | . . . . . Electromagnetic 54 | . 28 26 . . Impact . | . . . . . Slashing 673 | . . . . 673 Piercing . | . . . . . Highest Corruption . | . . . . . Average Corruption . | . . . . . Corruption Purged . | . . . . . Corruption Blocked . | . . . . . Overload Shots . | . . . . . Overflow Damage 180 | . 17 . . 163 Projectiles 17 | . 17 . . . Explosions . | . . . . . Melee 163 | . . . . 163 Knockbacks 10 | . 10 . . . Impact . | . . . . . Kinetic 10 | . 10 . . . Secondary . | . . . . . Self-Inflicted Damage . | . . . . . Shots . | . . . . . Rammed . | . . . . . Targets Rammed . | . . . . . Kicked . | . . . . . Crushed . | . . . . . Highest Temperature 207 | . 207 12 . . Average Temperature 57 | . 60 6 . . Received Heat Transfer 381 | . 276 69 . 36 Siege Activations . | . . . . . Robots Corrupted . | . . . . . Combat Hostiles . | . . . . . Parts Fried . | . . . . . Impact Corruptions . | . . . . . Robots Melted . | . . . . . Combat Hostiles . | . . . . . Parts Melted . | . . . . . Heat Transferred . | . . . . . Parts Sabotaged . | . . . . . Parts Stolen . | . . . . . Parts Stripped . | . . . . . Power Chain Reactions . | . . . . . Alert | -11 -10 -9 -8 -7 ------- Run | Yrd Mat Mat Mat Fac Peak Influence 324 | . 258 297 185 324 Initial 125 | . . 92 125 84 Average 126 | . 122 191 151 139 Maximum Alert Level 1 | . 1 1 . 1 Low Security (%) 81 | 100 83 45 100 78 Level 1 18 | . 16 54 . 21 Level 2 . | . . . . . Level 3 . | . . . . . Level 4 . | . . . . . Level 5 . | . . . . . High Security . | . . . . . Max Security . | . . . . . Squads Dispatched 7 | . 5 1 . 1 Investigation 3 | . 3 . . . Extermination . | . . . . . Reinforcement 4 | . 2 1 . 1 Assault . | . . . . . Garrison . | . . . . . Intercept . | . . . . . Searches Triggered . | . . . . . Construction Impeded . | . . . . . Haulers Reinforced . | . . . . . Active Scanning Responses . | . . . . . Cargo Convoy Interrupts . | . . . . . Stealth | -11 -10 -9 -8 -7 --------- Run | Yrd Mat Mat Mat Fac Distress Signals 2 | . 1 . 1 . Communications Jammed . | . . . . . Distress Signals . | . . . . . Times Spotted 67 | . 34 16 4 13 Peak Tracking Total 10 | . 4 10 3 5 Tactical Retreats 8 | . 1 3 1 3 Traps | -11 -10 -9 -8 -7 ------- Run | Yrd Mat Mat Mat Fac Traps Triggered 3 | . 3 . . . Indirectly . | . . . . . Trap Hack Attempts . | . . . . . Triggered . | . . . . . Disarmed . | . . . . . Reprogrammed . | . . . . . Reused . | . . . . . Traps Extracted . | . . . . . Installed . | . . . . . Triggered . | . . . . . Machines | -11 -10 -9 -8 -7 ---------- Run | Yrd Mat Mat Mat Fac Machines Disabled 2 | . 2 . . . Max in Single Turn 1 | . 1 . . . Machines Repaired . | . . . . . Machines Dismantled . | . . . . . Machines Sabotaged . | . . . . . Overloaded Fab Kills . | . . . . . Hacking | -11 -10 -9 -8 -7 --------- Run | Yrd Mat Mat Mat Fac Machines Accessed 3 | . 2 1 . . Terminals . | . . . . . Fabricators . | . . . . . Repair Stations 2 | . 1 1 . . Recycling Units 1 | . 1 . . . Scanalyzers . | . . . . . Garrison Access . | . . . . . Total Hacks 6 | . 4 2 . . Successful 5 | . 3 2 . . Failed 1 | . 1 . . . Catastrophic . | . . . . . Database Lockouts . | . . . . . Manual . | . . . . . Terminals . | . . . . . Fabricators . | . . . . . Repair Stations 5 | . 3 2 . . Recycling Units 1 | . 1 . . . Scanalyzers . | . . . . . Garrison Access . | . . . . . Terminal Hacks . | . . . . . Fabricator Hacks . | . . . . . Repair Station Hacks 4 | . 2 2 . . Scan Component 2 | . 1 1 . . Repair 1 | . . 1 . . Refit 1 | . 1 . . . Recycling Unit Hacks 1 | . 1 . . . Report Inventory 1 | . 1 . . . Scanalyzer . | . . . . . Garrison Access Hacks . | . . . . . Unauthorized Hacks . | . . . . . Terminals . | . . . . . Fabricators . | . . . . . Repair Stations . | . . . . . Recycling Units . | . . . . . Scanalyzers . | . . . . . Garrison Access . | . . . . . Data Cores Recovered 1 | . . 1 . . Used . | . . . . . Hacking Detections 2 | . 1 1 . . Full Trace Events 1 | . 1 . . . Feedback Events . | . . . . . Feedback Blocked . | . . . . . Robot Schematics Acquired . | . . . . . Robots Built . | . . . . . Authchips . | . . . . . Time . | . . . . . Total Robot Build Rating . | . . . . . Part Schematics Acquired . | . . . . . Parts Built . | . . . . . Authchips . | . . . . . Time . | . . . . . Total Part Build Rating . | . . . . . Parts Repaired 1 | . . 1 . . Time 26 | . . 26 . . Parts Recycled . | . . . . . Recycled Matter . | . . . . . Retrieved Matter . | . . . . . Retrieved Components . | . . . . . Parts Scanalyzed . | . . . . . Part Schematics Acquired . | . . . . . Parts Damaged . | . . . . . Bothacking | -11 -10 -9 -8 -7 ------------ Run | Yrd Mat Mat Mat Fac Used RIF Installer . | . . . . . Robots Hacked . | . . . . . Non-combat . | . . . . . Combat . | . . . . . Robot Hacks Applied . | . . . . . Relay Couplers Released . | . . . . . Fabnet Peak Effective % . | . . . . . Robots Rewired . | . . . . . Allies Hacked . | . . . . . Hacks Repelled . | . . . . . Allies | -11 -10 -9 -8 -7 -------- Run | Yrd Mat Mat Mat Fac Total Allies . | . . . . . Largest Group . | . . . . . Highest-Rated Group . | . . . . . Highest-Rated Ally . | . . . . . Total Orders . | . . . . . Ally Attacks . | . . . . . Total Damage . | . . . . . Kills . | . . . . . Allies Corrupted . | . . . . . Allies Melted . | . . . . . Intel | -11 -10 -9 -8 -7 ------- Run | Yrd Mat Mat Mat Fac Robot Analysis Total . | . . . . . Derelict Logs Recovered . | . . . . . Drone Launches . | . . . . . Drone Recoveries . | . . . . . Exploration | -11 -10 -9 -8 -7 ------------- Run | Yrd Mat Mat Mat Fac Turns Passed 2147 | 68 1556 117 94 312 Spaces Moved 2052 | 41 1063 205 213 530 Core 26 | 16 10 . . . Treads 648 | 25 623 . . . Legs . | . . . . . Wheels . | . . . . . Hover . | . . . . . Flight 1378 | . 430 205 213 530 Fastest Speed 34 | 50 37 37 37 34 Average Speed 82 | 129 120 37 37 36 Slowest Speed 550 | 160 550 37 37 120 Overloaded Moves . | . . . . . Propulsion Burnouts . | . . . . . Robots Hopped 8 | . 2 4 . 2 Cave-ins Triggered . | . . . . . Exploration Rate (%) 33 | 4 99 28 25 12 Regions Visited 4 Branch Regions . Pre-discovered Areas . | . . . . . Known Exits Taken 3 | . 1 1 1 . Unknown Exits Taken 1 | 1 . . . . Scrap Searched . | . . . . . Spaces Dug . | . . . . . Terrain Destroyed . | . . . . . Melee . | . . . . . Projectile . | . . . . . AOE . | . . . . . Terrain Rammed . | . . . . . Walls Destroyed . | . . . . . Machines Disabled . | . . . . . Actions | -11 -10 -9 -8 -7 --------- Run | Yrd Mat Mat Mat Fac Total 2351 | 56 1211 240 227 617 Wait 93 | . 22 31 . 40 Move 2032 | 40 1058 196 212 526 Hop 8 | . 2 4 . 2 Pick Up 53 | 10 23 3 6 11 Fast Attach . | . . . . . Attach 27 | 6 9 2 5 5 Detach 4 | . 3 . . 1 Swap 15 | . 9 . 2 4 Drop 28 | . 17 2 2 7 Fire 70 | . 68 2 . . Melee 21 | . . . . 21 Ram . | . . . . . Kick . | . . . . . Crush . | . . . . . Escape Stasis . | . . . . . Rewire . | . . . . . Trap . | . . . . . Miscellaneous . | . . . . . Route ------- -11/Scrapyard -10/Materials (discovered 4 exits: *Mat x3 / *Min) -9/Materials -8/Materials -7/Factory History --------- Turn | Location | Event 7 | -11/Scrapyard | Discovered new exit (range 16) 69 | -11/Scrapyard | Entered Materials 81 | -10/Materials | Discovered new exit (range 15) 181 | -10/Materials | Discovered new exit (range 9) 306 | -10/Materials | Build established: Mutant 632 | -10/Materials | Discovered new exit (range 16) 1076 | -10/Materials | Discovered new exit (range 14) 1589 | -10/Materials | Identified exit to Mines 1624 | -10/Materials | Identified exit to Materials 1625 | -10/Materials | Entered another Materials area 1625 | -9/Materials | Evolved 2 slots: Utility x2 1694 | -9/Materials | Repaired Sensor Array 1724 | -9/Materials | Discovered new exit (range 18) 1742 | -9/Materials | Identified exit to Materials 1742 | -9/Materials | Entered another Materials area 1742 | -8/Materials | Evolved 2 slots: Utility x2 1830 | -8/Materials | Discovered new exit (range 18) 1836 | -8/Materials | Identified exit to Factory 1836 | -8/Materials | Entered Factory 1836 | -7/Factory | Evolved 2 slots: Power x1, Utility x1 2148 | -7/Factory | Self-destructed Last Messages --------------- 02049_ DSF Access x1 02049_ Terminal x1 02063_ Flight Unit destroyed. 02063_ Dropped Lgt. Ion Engine. 02063_ Acquired Deuterium Engine. 02070_ S-27 Virus destroyed. 02074_ Dropped Lgt. Deuterium Engine. 02075_ Acquired VTOL Module. 02099_ Acquired 24 matter. 02113_ S-27 Virus destroyed. 02121_ Acquired VTOL Module. 02122_ Acquired 1 matter. 02124_ Dropped Hpw. Shotgun. 02124_ Acquired Lgt. Nuclear Core. 02130_ Dropped Deuterium Engine. 02132_ >> Machine Analyzer network decryption results: 02132_ Repair Station x1 02143_ S-27 Virus destroyed. 02145_ Weight Redist. System destroyed. 02147_ VTOL Module destroyed. Map ----- +----------------------------------------------------+ | | | | | | | | | | | | | | | | | | | | | | | | | | | ######??????????????????????????######???????????? | | *#?????????????????????????# #???????????? | | = #?????????????????????????# #???????????? | | """" #???????????????????????### ==[#???????????? | | *###########???????####### + =[ #???????????? | | """" # #######?# # =[ #???????????? | | # # #?# # #???????????? | | """" # # ### # ! #???????????? | | # + "" #######???????????? | | """" # =! # ! ### "" #####?????????????? | | # = # #?# """ ???????????? | | """" # * #######?# """ #####???????????? | | # #???????# @""" #???????????????? | | #########+######???????# %[ #???????????????? | | #???### ###????????? ss s #???????????????? | | [##### #???????? ######## #???????????????? | | % #####??? ?????????# ##???????????????? | | * ????"""??? #????????????????? | | %= #########????"""??? #????????????????? | | [##### #?????????????R"??? #????????????????? | | #???###+###????????????"""??? #????????????????? | | ###???????????????????????????# #????????????????? | | ????????"""??????????????????? ????????????????? | | ????????"""??????????????????? ]?????????????? | | ######??"""??????????????????? ????????????? | | #????????????????????????# #?????? ? | | #??"""???????????????????# #????# ?" | | #??"""??????????########## #????# "" | | #??"""??????????# # #????# "T | | """" #???????????????# # #????# "" | | """" #???????????????# # ###### "" | | """" #???????????????# # | | """" #???????????????# !# """ | | """" #???????????????# / %% """ | | """" #???????????????# !%# """ | | """" #?####??????????# =# """ | | #?#T"#??????????# # | +----------------------------------------------------+ Best States ------------- Heat Dissipation 34 Energy Generation 14 Energy Capacity 275 Matter Stores 300 Matter Capacity 300 Sight Range 18 Robot Scan Range 14 Terrain Scan Range 16 Terrain Scan Density 10 ECM Strength 1 Additional Mass Support 6 Evasion (%) 63 Targeting Accuracy 12 Recoil Reduction 2 Item Schematics ----------------- None Robot Schematics ------------------ None Fabricated ------------ Nothing Alien Tech Used ----------------- None Achievements -------------- Part-time Mechanic Challenges ------------ None Game ------ Seed BladeRingMantle Manual? 0 Play Time 00:31:49 Cumulative 5.6 hours Start 2025.03.28 @ 16:52:05 End 2025.03.28 @ 17:22:19 Sessions 1 Manual Loads 0 Difficulty Rogue Special Mode None Game No. 16 Rogue 16 Adventurer 0 Explorer 0 Win Type - Total 0 Types 0/0/0/0/0/0/0/0/0 Lore% 0 Gallery% 9 Achievement% 10 Wizard Run 0 Options --------- Layout 0 ASCII 0 Keyboard 0 Movement Mouse Keybinds 0 Fullscreen 2 Font 24/Smallcaps Map View 76x50 Zoom Use 0% Tactical HUD 1 Map Filters NONE Filters NONE Steam 1 RUN: 48eefbd9-6c1a-46b8-88ea-2157b253cb1e